[Event "10th Iberoamericano-ch 2024"]
[Site "Linares"]
[Date "2024.09.25"]
[Round "1.15"]
[White "Rodriguez Vila, Andres"]
[Black "Pastor Carvajal, Jeigoth"]
[Result "1-0"]
[ECO "A02"]
[WhiteElo "2417"]
[BlackElo "2120"]
[Annotator "TA"]
[PlyCount "107"]
[EventDate "2024.09.25"]
[EventType "swiss"]
[EventCountry "ESP"]
[SourceTitle "playchess.com"]
[Source "ChessBase"]
[SourceQuality "1"]
[TimeControl "5400+30"]

{[%evp 15,106,-25,-18,-18,-22,-50,-41,-53,-39,-57,-40,-52,-22,-59,-50,-120,-136,-127,-104,-127,-122,-156,-98,-143,-116,-131,-87,-147,-130,-122,-129,-145,-114,-129,-145,-148,-68,-49,-7,-7,-14,-7,0,-41,-19,-7,-4,-21,-1,-12,0,0,39,0,0,0,0,0,125,114,254,216,209,227,195,194,304,252,252,172,277,262,236,173,671,636,585,315,788,762,735,548,825,750,789,772,29993,29994,29994,29995,29995,29996,29999]} 1. f4 {[%emt 0:00:33]} Nh6 {[%emt 0:00:18]} 2. Nf3 {[%emt 0:00:07]} d5 {[%emt 0:00:22]} 3. g3 {[%emt 0:00:16]} c5 {[%emt 0:01:58]} 4. Bg2 {[%emt 0:00:07]} e6 {[%emt 0:01:18]} 5. O-O {[%emt 0:00:07]} Nc6 {[%emt 0:01:08]} 6. e3 $146 {[%emt 0:03:20] A02: Bird's Opening.} ({Predecessor:} 6. d3 Be7 7. e4 dxe4 8. dxe4 O-O 9. h3 f6 10. c3 Nf7 11. Be3 Qc7 12. Na3 {½-½ Montigel,P (1961)-Thieme,S (1978) Oberliga Wuerttemberg 0203 2002 (2)}) 6... Be7 {[%emt 0:03:07]} 7. d4 {[%emt 0:00:13]} Nf5 {[%emt 0:01:19]} 8. c3 {[%emt 0:00:15]} h5 {[%emt 0:01:36]} 9. Qe2 {[%emt 0:00:29]} b6 {[%emt 0:08:50]} 10. Ne5 {[%emt 0:01:14]} Nxe5 {[%emt 0:15:09]} 11. fxe5 {[%emt 0:02:07]} Bb7 {[%emt 0:04:23]} 12. a4 {[%emt 0:05:33]} Qd7 {[%emt 0:06:14]} 13. a5 {[%emt 0:02:30]} b5 {[%emt 0:04:33]} (13... h4 $5 14. g4 h3 15. gxf5 hxg2 $17) 14. a6 {[%emt 0:01:20]} Bc6 {[%emt 0:00:06]} 15. Bd2 {[%emt 0:08:19]} (15. Rf2 $15) 15... b4 $1 $17 {[%emt 0:03:14]} 16. Rf2 {[%emt 0:02:34]} Rb8 {[%emt 0:04:39]} 17. Be1 {[%emt 0:02:46]} Bb5 {[%emt 0:08:22]} 18. Qf3 {[%emt 0:00:39]} Rb6 {[%emt 0:01:50]} (18... g5 $142 {aiming for ...g4.} 19. h3 Qc7) 19. Bf1 {[%emt 0:17:22]} Bxf1 {[%emt 0:03:41]} 20. Rxf1 {[%emt 0:00:09]} Qc6 {[%emt 0:01:17]} 21. Qe2 {[%emt 0:01:06]} (21. c4 $142 Nh6 (21... dxc4 22. d5 $15) (21... cxd4 22. cxd5 Qc2 23. d6 $17) 22. cxd5 exd5 (22... Qxd5 23. Qxd5 exd5 24. Ra5 $11) 23. Nd2) 21... Qb5 {[%emt 0:05:45]} 22. Qxb5+ {[%emt 0:00:36]} Rxb5 {[%emt 0:00:03]} 23. Bf2 {[%emt 0:01:10]} cxd4 {[%emt 0:05:11]} 24. cxd4 {[%emt 0:01:14]} Kd7 {[%emt 0:01:14]} 25. Nd2 {[%emt 0:04:07]} Bg5 {[%emt 0:04:12]} (25... Rc8 $17 {Strongly threatening ...Rc2.} 26. Nb3 Rc2) 26. Nb3 {[%emt 0:00:11]} Nxe3 {[%emt 0:01:36]} (26... Bxe3 $2 27. Bxe3 Rb6 28. Rxf5 exf5 29. Ra5 $18) 27. h4 {[%emt 0:01:41]} Bh6 $1 {[%emt 0:00:43]} (27... Nxf1 28. hxg5 $14) 28. Bxe3 $1 {[%emt 0:00:08]} Bxe3+ {[%emt 0:00:02]} 29. Kg2 {[%emt 0:00:06]} Ke7 {[%emt 0:01:49]} 30. Rf3 {[%emt 0:00:27]} Bh6 {[%emt 0:00:07]} 31. Raf1 {[%emt 0:00:53]} Rf8 {[%emt 0:00:07]} 32. R1f2 $1 {[%emt 0:00:28]} f5 {[%emt 0:01:17]} 33. Rc2 {[%emt 0:00:57]} Rd8 {[%emt 0:01:54]} 34. Rff2 {[%emt 0:01:08]} Kd7 $1 {[%emt 0:03:29]} 35. Nc5+ {[%emt 0:05:19]} Ke7 {[%emt 0:00:11]} 36. Nb7 {[%emt 0:00:13]} Rd7 {[%emt 0:03:34] [#]} (36... Be3 $1 $11 {keeps the balance.}) 37. Kf3 $1 $16 {[%emt 0:00:39]} Rb6 {[%emt 0:01:04]} (37... b3 $16 {was called for.} 38. Rc6 Rbxb7 39. axb7 Rxb7) 38. Rc8 $18 {[%emt 0:00:28]} Rbxb7 {[%emt 0:03:08]} 39. axb7 {[%emt 0:00:06]} Rxb7 {[%emt 0:00:02]} 40. Rfc2 {[%emt 0:00:28]} Kd7 {[%emt 0:00:56]} (40... b3 $142 41. R2c5 (41. R2c7+ Rxc7 42. Rxc7+ Kd8 $11) 41... Kf7) 41. Ra8 {[%emt 0:01:23]} b3 {[%emt 0:00:40]} 42. Rc5 {[%emt 0:01:35]} Bd2 {[%emt 0:00:29] [#]} (42... Ke7 $142 43. Rac8 Kf7) 43. Rg8 $1 $18 {[%emt 0:00:38]} Bh6 {[%emt 0:00:29]} 44. Rf8 {[%emt 0:01:49]} Rb4 $2 {[%emt 0:00:28]} (44... Ke7 45. Rfc8 Kf7 46. R8c7+ Rxc7 47. Rxc7+ Ke8) 45. Rf7+ $18 {[%emt 0:01:10]} Kd8 {[%emt 0:00:19]} 46. Rfc7 {[%emt 0:01:10]} Ke8 $2 {[%emt 0:00:46]} (46... Rc4 47. Rxc4 (47. Rxa7 Rxc5 48. dxc5 g5 $18) 47... dxc4 48. Rxc4 a5) 47. Rxa7 $18 {[%emt 0:00:26]} Rb8 {[%emt 0:00:03]} 48. Rac7 {[%emt 0:01:12]} Rb4 {[%emt 0:00:17]} 49. Ra5 {[%emt 0:01:20]} Kd8 {[%emt 0:00:25]} 50. Raa7 {[%emt 0:01:10]} Rxd4 {[%emt 0:01:14]} 51. Rf7 {[%emt 0:00:07]} Rd3+ {[%emt 0:00:07]} 52. Kg2 {[%emt 0:00:09]} Rd2+ {[%emt 0:00:15]} 53. Kh3 {[%emt 0:00:03]} g5 {[%emt 0:00:21]} 54. Ra8# 1-0

[Event "10th Iberoamericano-ch 2024"]
[Site "Linares"]
[Date "2024.09.25"]
[Round "1.16"]
[White "Atienza Alvarez, Javier"]
[Black "Garcia Ramos, Daniel"]
[Result "0-1"]
[ECO "E11"]
[WhiteElo "2119"]
[BlackElo "2415"]
[Annotator "TA"]
[PlyCount "62"]
[EventDate "2024.09.25"]
[EventType "swiss"]
[EventCountry "ESP"]
[SourceTitle "playchess.com"]
[Source "ChessBase"]
[SourceQuality "1"]
[TimeControl "5400+30"]

{[%evp 21,62,12,6,8,14,0,0,0,3,0,-4,-10,-8,-6,0,0,0,0,17,-35,-39,-49,-53,-66,-72,-88,-85,-67,-69,-124,-116,-122,-134,-353,-328,-363,-366,-462,-450,-512,-496,-29982,-29983]} 1. d4 {[%emt 0:00:22]} Nf6 {[%emt 0:00:19]} 2. c4 {[%emt 0:02:28]} e6 {[%emt 0:00:18]} 3. Nf3 {[%emt 0:00:51]} d5 {[%emt 0:00:25]} 4. g3 {[%emt 0:00:38]} Bb4+ {[%emt 0:00:23]} 5. Bd2 {[%emt 0:00:25]} Be7 {[%emt 0:00:23]} 6. Bg2 {[%emt 0:00:36]} O-O {[%emt 0:00:22]} 7. O-O {[%emt 0:00:12]} c6 {[%emt 0:00:49]} 8. b3 {[%emt 0:02:54]} Nbd7 {[%emt 0:00:52]} 9. Bc3 {[%emt 0:00:10]} b6 {[%emt 0:03:25]} 10. Nbd2 {[%emt 0:00:20]} Bb7 {[%emt 0:10:29]} 11. Qc2 {[%emt 0:02:33]} c5 {[%emt 0:06:27]} 12. dxc5 {[%emt 0:09:40]} Bxc5 {[%emt 0:09:43]} 13. Rfd1 {[%emt 0:06:25]} Qe7 {[%emt 0:07:21]} 14. a3 {[%emt 0:09:33] The position is equal.} Rac8 {[%emt 0:08:00]} (14... Bxa3 15. Rxa3 Qxa3 16. b4 $14) 15. Qb2 {[%emt 0:11:56]} dxc4 {[%emt 0:03:45]} 16. Nxc4 {[%emt 0:01:17]} Rfd8 {[%emt 0:08:50]} 17. e3 {[%emt 0:14:44]} b5 {[%emt 0:03:12]} 18. Na5 {[%emt 0:06:46]} Be4 {[%emt 0:02:33][%cal Oe6e5]} 19. Nd4 {[%emt 0:02:57] And now Bxe4 would win.} Bxd4 {[%emt 0:16:39]} 20. Bxd4 {[%emt 0:04:35]} (20. Rxd4 $11 Nc5 21. Bb4) 20... Rc2 {[%emt 0:07:56]} 21. Qb1 {[%emt 0:12:18] Strongly threatening Bxe4.} Rdc8 $36 {[%emt 0:00:06][%mdl 2048] ...e5 is the strong threat. Black has some pressure.} 22. Bxe4 {[%emt 0:00:21]} Nxe4 {[%emt 0:00:07]} 23. Nc4 {[%emt 0:00:49] [#]} Nxf2 $1 {[%emt 0:01:54] aiming for ...Nh3+. Black is much more active. Excellent horsemanship.} 24. Qxc2 {[%emt 0:01:47]} Nxd1 {[%emt 0:00:06]} 25. Qxd1 {[%emt 0:04:16]} ({Better is} 25. Rxd1 $15 bxc4 26. bxc4) 25... bxc4 $17 {[%emt 0:00:07]} 26. bxc4 {[%emt 0:00:05] [#]} e5 $1 {[%emt 0:02:13]} ({Resist} 26... Rxc4 27. Bxa7 e5 28. Rc1 Rxc1 29. Qxc1 $15) 27. Bxa7 {[%emt 0:02:27] [#] Loses the game.} (27. Bb2 $17) 27... Ra8 $1 $19 {[%emt 0:00:25]} ({Inferior is} 27... Rxc4 28. Rc1 Rxc1 29. Qxc1 $11) 28. Qa4 {[%emt 0:02:30]} Nb6 {[%emt 0:00:12]} 29. Qb4 {[%emt 0:00:33]} Qxa7 {[%emt 0:00:07]} 30. Rb1 {[%emt 0:00:25]} Nd7 {[%emt 0:00:19]} 31. Qe7 {[%emt 0:00:30]} (31. Qc3 $19) 31... Qxe3+ {[%emt 0:00:13] Weighted Error Value: White=0.63/Black=0.02 (flawless) .  Loses game:     	White=1     	---        Mistake:       	White=3     	---        OK:         	White=3     	Black=7      Best:        	White=1     	Black=4      Strong:       	---       	Black=3} 0-1

[Event "10th Iberoamericano-ch 2024"]
[Site "Linares"]
[Date "2024.09.25"]
[Round "1.17"]
[White "Merario Alarcon, Andres"]
[Black "Ontanon Gomez, Pablo"]
[Result "1-0"]
[ECO "A55"]
[WhiteElo "2408"]
[BlackElo "2118"]
[Annotator "TA"]
[PlyCount "87"]
[EventDate "2024.09.25"]
[EventType "swiss"]
[EventCountry "ESP"]
[SourceTitle "playchess.com"]
[Source "ChessBase"]
[SourceQuality "1"]
[TimeControl "5400+30"]

{[%evp 13,87,25,27,22,44,26,15,27,31,30,48,59,56,44,70,41,62,56,104,37,35,31,41,31,43,0,0,0,0,0,37,0,7,0,5,0,0,0,17,23,48,0,0,0,39,33,84,64,75,38,34,21,25,29,51,60,279,285,388,402,397,383,424,420,412,409,431,420,510,471,486,412,503,507,576,594]} 1. d4 {[%emt 0:03:02]} Nf6 {[%emt 0:00:09]} 2. c4 {[%emt 0:00:09]} d6 {[%emt 0:00:28]} 3. Nc3 {[%emt 0:00:17]} e5 {[%emt 0:00:20]} 4. Nf3 {[%emt 0:00:09]} Nbd7 {[%emt 0:11:18]} 5. e4 {[%emt 0:01:32]} g6 {[%emt 0:03:04]} 6. Be3 {[%emt 0:04:52]} Bg7 {[%emt 0:02:55]} 7. h3 {[%emt 0:09:12]} O-O {[%emt 0:00:35]} 8. Bd3 {[%emt 0:00:24]} b6 {[%emt 0:08:27]} 9. O-O {[%emt 0:02:27]} exd4 {[%emt 0:04:55]} 10. Nxd4 {[%emt 0:00:47] The position is equal.} Bb7 {[%emt 0:00:38]} 11. Bc2 {[%emt 0:09:31]} Nc5 {[%emt 0:08:59]} 12. f3 {[%emt 0:00:21]} Qe7 {[%cal Od6d5]} 13. Qd2 Nfd7 {[%emt 0:17:41]} 14. Rfe1 {[%emt 0:08:07]} Ne5 {[%emt 0:04:46]} 15. b3 {[%emt 0:00:40]} a5 {[%emt 0:01:25]} (15... Ne6 $14 {is superior.}) 16. a4 {[%emt 0:07:19]} (16. Rad1 $16) 16... Nc6 $14 {[%emt 0:07:12]} 17. Nd5 {[%emt 0:06:42]} Qd7 {[%emt 0:04:06] [#]} 18. Nb5 $1 {[%emt 0:08:30][%cal Ob5c7,Bd4b5,Bb5a3,Ba3c4][%mdl 32] aiming for Nbxc7!} Nb4 {[%emt 0:06:47]} (18... Na6 19. Rad1) 19. Rad1 {[%emt 0:15:45]} Bxd5 {[%emt 0:01:47]} 20. cxd5 {[%emt 0:00:28]} Rac8 21. Na3 Na2 22. Qf2 Qe7 23. Nc4 Nb4 24. Kh1 Ra8 25. Bc1 Na2 26. Ba3 {[%cal Oe4e5]} Nc3 27. Rc1 {[%cal Oe4e5]} Na2 {A dynamic duo of knights.} 28. Rcd1 {[%cal Oe4e5]} Nc3 29. Rd2 Bh6 {[#]} (29... Rfd8 $14) 30. Bxc5 $1 bxc5 31. Rd3 Na2 32. f4 Nb4 33. Rf3 Rfe8 {[%cal Ob4d5]} 34. e5 $1 $36 {[%mdl 2048] White is more active.} Nxd5 $2 {Black cannot hold the game after this.} (34... Bg7 $14) 35. Be4 $18 Nb6 {Black is weak on the light squares} 36. Bxa8 Nxa8 37. Rd3 ({Don't do} 37. Nxa5 Nb6 38. Nb7 (38. Nc6 Qd7 $18) 38... Nd7 $18) 37... Nb6 38. Nxb6 ({Don't take} 38. Nxa5 Bf8 39. Qf3 (39. Nc6 Qd7 $18) 39... Qe6 $18) 38... cxb6 39. Rxd6 Qc7 40. Red1 Bf8 41. Rd7 Qc6 42. Qc2 Qe6 43. Qc4 Qf5 44. g4 {Weighted Error Value: White=0.12 (very precise) /Black=0.32.  Loses game:     	---       	Black=1      Mistake:       	White=1     	Black=2      Inaccurate:     	White=4     	Black=3      OK:         	White=17    	Black=11     Best:        	White=1     	Black=1      Strong:       	White=1     	---} 1-0

[Event "10th Iberoamericano-ch 2024"]
[Site "Linares"]
[Date "2024.09.25"]
[Round "1.18"]
[White "Suarez Gomez, Paula"]
[Black "Zambrana, Osvaldo"]
[Result "0-1"]
[ECO "B33"]
[WhiteElo "2111"]
[BlackElo "2405"]
[Annotator "TA"]
[PlyCount "64"]
[EventDate "2024.09.25"]
[EventType "swiss"]
[EventCountry "ESP"]
[SourceTitle "playchess.com"]
[Source "ChessBase"]
[SourceQuality "1"]
[TimeControl "5400+30"]

{[%evp 20,64,15,3,5,14,19,0,0,-23,-27,-29,0,-43,-69,-55,-34,-62,-68,-100,0,-281,-272,-266,-273,-285,-269,-515,-506,-517,-488,-660,-555,-638,-410,-995,-995,-988,-988,-29984,-29985,-29985,-29981,-29986,-29987,-29986,-29977]} 1. e4 c5 2. Nf3 {[%cal Bg1f3,Bf3d4,Bd4b5,Bb5a3,Ba3c2][%mdl 32]} Nc6 3. d4 cxd4 4. Nxd4 Nf6 5. Nc3 e5 6. Ndb5 d6 7. Bg5 a6 8. Na3 b5 {[%cal Bb7b5,Bb5b4][%mdl 32]} 9. Nd5 Be7 10. Bxf6 Bxf6 11. c4 b4 12. Nc2 O-O 13. Qf3 {[%cal Of1e2]} Bg5 {The position is equal.} 14. g3 {[%cal Of1g2]} f5 15. h4 fxe4 16. Qxe4 Bf5 17. Qe2 Nd4 $36 {[%mdl 2048] Black has some pressure.} 18. Nxd4 exd4 19. Qh5 {[#]} Bh6 {A strong pair of Bishops.} (19... Qd7 $1 $17 20. hxg5 (20. Qxg5 $2 {is the wrong capture.} Rae8+ 21. Kd2 Qa4 $19) 20... Rae8+ 21. Be2 Bg6 (21... d3 22. Ne3 $15)) 20. Be2 $2 {[%mdl 8192]} (20. f4 $1 $11 {and White stays safe.}) 20... d3 $19 21. Bf3 {[%cal Oe1g1]} d2+ 22. Kf1 Ra7 23. Kg2 $2 (23. Rd1 Bg6 24. Qg4) 23... Raf7 24. Nf4 {Inhibits Bg6.} Bxf4 25. gxf4 Be6 26. Bd5 Qd7 27. Rad1 (27. Qe2 $142 Bxd5+ 28. cxd5 Rxf4 29. f3) 27... Bxd5+ 28. cxd5 Rxf4 {[#] ( -> ...Rg4+)} 29. Rxd2 Rg4+ {Black mates.} 30. Kf1 Qb5+ 31. Ke1 Qc4 32. Kd1 Qf4 {Weighted Error Value: White=0.83/Black=0.30.  Loses game:     	White=1     	---        Mistake:       	White=2     	Black=1      Inaccurate:     	White=4     	Black=1      OK:         	White=6     	Black=8      Best:        	White=2     	Black=2} 0-1

[Event "10th Iberoamericano-ch 2024"]
[Site "Linares"]
[Date "2024.09.25"]
[Round "1.19"]
[White "Matamoros Franco, Carlos S."]
[Black "Jimenez Fernandez, Rebeca"]
[Result "1-0"]
[ECO "A14"]
[WhiteElo "2404"]
[BlackElo "2097"]
[Annotator "TA"]
[PlyCount "69"]
[EventDate "2024.09.25"]
[EventType "swiss"]
[EventCountry "ESP"]
[SourceTitle "playchess.com"]
[Source "ChessBase"]
[SourceQuality "1"]
[TimeControl "5400+30"]

{[%evp 10,69,20,6,11,8,12,31,15,0,19,8,12,9,27,28,16,20,79,72,142,136,188,181,194,134,126,119,133,124,125,129,127,119,159,127,194,129,130,132,147,139,160,140,870,238,242,243,228,220,220,183,355,327,343,347,342,337,364,364,642,642]} 1. Nf3 {[%emt 0:00:03]} d5 {[%emt 0:00:09]} 2. g3 {[%emt 0:00:10]} Nf6 {[%emt 0:00:05]} 3. Bg2 {[%emt 0:00:06]} e6 {[%emt 0:00:03]} 4. O-O {[%emt 0:00:26]} Be7 {[%emt 0:00:05]} 5. c4 {[%emt 0:01:41]} O-O {[%emt 0:00:08]} 6. d3 {[%emt 0:01:35][%cal Bd2d3,Bd3d4][%mdl 32]} b6 {[%emt 0:01:37]} 7. cxd5 {[%emt 0:00:43]} Nxd5 {[%emt 0:02:34]} 8. d4 {[%emt 0:01:10]} Bb7 {[%emt 0:02:04] White is slightly better.} 9. Re1 {[%emt 0:01:40]} c5 {[%emt 0:06:49]} 10. e4 {[%emt 0:01:46]} Nf6 {[%emt 0:01:51]} 11. Nc3 {[%emt 0:00:09][%cal Od4d5]} cxd4 {[%emt 0:06:29]} 12. Nxd4 {[%emt 0:00:31]} Na6 {[%emt 0:14:57]} 13. Bf4 {[%emt 0:29:42]} Qd7 {[%emt 0:10:31]} (13... Bc5 $11 14. Ndb5 Qxd1 15. Raxd1 (15. Rexd1 Ng4 $11) 15... Ng4) 14. Ndb5 $16 {[%emt 0:01:25]} Bc6 {[%emt 0:19:02] [#]} ({Better is} 14... Rfd8) 15. Qe2 $1 {[%emt 0:15:18] White is more active.} Bb4 {[%emt 0:15:49]} (15... Nc5 $16 {keeps fighting.}) 16. Red1 $18 {[%emt 0:03:12]} Qb7 {[%emt 0:03:09]} 17. Nd6 {[%emt 0:20:02]} (17. Rac1 $18) 17... Bxd6 $16 {[%emt 0:00:17]} 18. Bxd6 {[%emt 0:00:42]} Rfd8 {[%emt 0:00:41] [#]} 19. b4 $1 {[%emt 0:01:21] Prevents Nc5. b5 is the strong threat.} b5 {[%emt 0:10:39]} ({Not} 19... Ne8 $2 20. b5 Nxd6 21. bxc6 Qxc6 22. Rac1 $18 (22. e5 Qxc3 23. exd6 Nc5 $18)) 20. a4 {[%emt 0:00:46][%cal Ba2a4,Ba4b5][%mdl 32]} Nc7 {[%emt 0:02:25]} 21. Bxc7 {[%emt 0:06:57]} Qxc7 {[%emt 0:00:04]} 22. axb5 {[%emt 0:04:14]} Bb7 {[%emt 0:00:09]} (22... Be8 $16 {might work better.} 23. e5 Rxd1+ 24. Rxd1 Rc8) 23. Na4 {[%emt 0:02:05]} ({White should try} 23. Qe3 $18) 23... Rxd1+ {[%emt 0:01:48]} 24. Rxd1 {[%emt 0:00:05]} ({Much less strong is} 24. Qxd1 Bxe4 25. Bxe4 Nxe4 $14) 24... Rd8 25. Nc5 $36 {[%emt 0:00:17][%mdl 2048] White is on the roll.} Ba8 {[%emt 0:00:59]} 26. h3 {[%emt 0:01:50]} Rb8 $2 {[%emt 0:00:33][%mdl 8192] Loses the game.} (26... h6 $16 27. Rd3 Rc8) 27. Qd3 $2 {[%emt 0:01:44]} (27. Na6 Qb7 28. Nxb8 Qxb8 29. Qd3) 27... Qb6 {[%emt 0:00:26]} 28. Bf1 {[%emt 0:02:10]} Rc8 {[%emt 0:00:35]} 29. Qd4 {[%emt 0:01:28]} h6 {[%emt 0:00:16]} 30. Qe5 {[%emt 0:01:22]} Rd8 $2 {[%emt 0:00:43]} (30... Re8 31. Qd4 e5) 31. Na4 $18 {[%emt 0:00:27]} Qb8 {[%emt 0:00:31]} 32. Qxb8 {[%emt 0:00:06]} Rxb8 {[%emt 0:00:03]} 33. f3 {[%emt 0:00:04]} Kf8 {[%emt 0:00:30]} 34. Nc5 {[%emt 0:00:07]} Ke7 $2 {[%emt 0:00:17]} (34... Ke8 35. Ra1 Bb7 36. Rxa7 Bc8) 35. Ra1 {[%emt 0:00:04] Weighted Error Value: White=0.25 (precise) /Black=0.33.  Loses game:     	---       	Black=1      Mistake:       	White=3     	Black=6      Inaccurate:     	---       	Black=1      OK:         	White=14    	Black=8      Best:        	White=2     	Black=3      Strong:       	White=2     	---} 1-0

[Event "10th Iberoamericano-ch 2024"]
[Site "Linares"]
[Date "2024.09.25"]
[Round "1.20"]
[White "Barrenechea Bahamonde, Gustavo"]
[Black "Veiga, Jose Francisco R P N"]
[Result "0-1"]
[ECO "C22"]
[WhiteElo "2093"]
[BlackElo "2404"]
[Annotator "TA"]
[PlyCount "84"]
[EventDate "2024.09.25"]
[EventType "swiss"]
[EventCountry "ESP"]
[SourceTitle "playchess.com"]
[Source "ChessBase"]
[SourceQuality "1"]
[TimeControl "5400+30"]

{[%evp 15,84,-42,-47,-43,-16,-22,17,8,50,34,95,68,93,51,57,47,58,43,45,61,58,-41,-42,-47,-15,0,-16,-25,-22,-46,-29,-25,-30,-45,-45,-93,-72,-81,-76,-71,-77,-216,-215,-229,-214,-509,-512,-512,-490,-470,-456,-708,-716,-786,-802,-774,-779,-783,-804,-759,-563,-567,-561,-522,-518,-953,-825,-820,-679,-5824,-5824]} 1. e4 {[%emt 0:04:04]} e5 {[%emt 0:01:46]} 2. d4 {[%emt 0:00:25]} exd4 {[%emt 0:00:32]} 3. Qxd4 {[%emt 0:00:10]} Nc6 {[%emt 0:00:32]} 4. Qe3 {[%emt 0:00:08]} Nf6 {[%emt 0:00:22]} 5. Nc3 {[%emt 0:00:57]} Bb4 {[%emt 0:00:25]} 6. Bd2 {[%emt 0:00:17]} O-O {[%emt 0:01:34]} 7. O-O-O {[%emt 0:00:12]} Re8 {[%emt 0:03:21]} 8. Bc4 {[%emt 0:04:26]} d6 {[%emt 0:03:49][%cal Bd7d6,Bd6e5][%mdl 32]} 9. Nf3 {[%emt 0:00:16]} a5 {[%emt 0:20:00]} 10. Rhe1 {[%emt 0:15:52]} Bc5 {[%emt 0:08:55]} 11. Qf4 {[%emt 0:04:08] The position is equal.} a4 {[%emt 0:07:00][%cal Oa4a3]} 12. a3 {[%emt 0:09:53]} h6 {[%emt 0:07:13] [#]} (12... Bxf2 $14 13. Bxf7+ Kxf7 14. Ng5+ Kf8 15. Qxf2 Kg8) 13. e5 $1 $16 {[%emt 0:23:18]} dxe5 {[%emt 0:06:58]} 14. Bxf7+ {[%emt 0:01:47]} Kxf7 {[%emt 0:01:33]} 15. Qc4+ {[%emt 0:00:19]} (15. Nxe5+ $2 {loses.} Nxe5 16. Rxe5 Rxe5 (16... Qd4 $2 17. Rxe8 Qxf4 18. Rxc8 $19) 17. Qxe5 Qd6 $19 (17... Bxf2 18. Be1 $11)) 15... Kf8 {[%emt 0:10:00]} 16. Nh4 {[%emt 0:08:37][%cal Rh4g6]} Be6 {[%emt 0:02:49]} 17. Qxc5+ {[%emt 0:01:26]} Kf7 {[%emt 0:01:43] [#] Strongly threatening ...Nd7.} 18. Bxh6 {[%emt 0:03:41]} Nd7 $36 {[%emt 0:00:21][%mdl 2048] Black fights for an advantage.} 19. Rxd7+ {[%emt 0:06:15]} Bxd7 {[%emt 0:00:42]} 20. Qd5+ {[%emt 0:01:54]} Be6 {[%emt 0:03:57] Really sharp!} 21. Qxd8 {[%emt 0:00:11]} (21. Qf3+ {is interesting.} Qf6 22. Bd2 Rh8 23. g3) 21... Rexd8 {[%emt 0:04:49]} 22. Bg5 {[%emt 0:01:20]} Rd7 {[%emt 0:01:29]} 23. Nf3 {[%emt 0:03:36]} Bd5 {[%emt 0:00:12]} 24. Ne4 {[%emt 0:00:43]} b6 {[%emt 0:03:33]} 25. Bd2 {[%emt 0:02:17]} (25. Bh4 $15 {is more appropriate.}) 25... Re8 {[%emt 0:01:02]} 26. Nfg5+ {[%emt 0:01:53]} Kg6 {[%emt 0:01:15]} 27. f3 {[%emt 0:00:59]} Nd4 {[%emt 0:00:28]} 28. Nc3 {[%emt 0:00:30] [#] This move loses the game for White.} (28. Kb1 $17) 28... Bb3 $1 $19 {[%emt 0:00:46][%mdl 512]} 29. h4 {[%emt 0:04:51]} Bxc2 {[%emt 0:02:17] aiming for ...Nb3+.} 30. Rh1 $2 {[%emt 0:00:32]} (30. Be3 Bd3 31. Bxd4 Rxd4 32. g3) 30... Nb3+ {[%emt 0:00:33] Black is clearly winning.} 31. Kxc2 {[%emt 0:00:06] Hoping for Be3.} Rxd2+ {[%emt 0:00:06]} 32. Kb1 {[%emt 0:00:06]} Rxg2 {[%emt 0:00:29]} 33. Nce4 {[%emt 0:00:09]} (33. Nxa4 $142 Nd2+ 34. Ka2) 33... Rd8 {[%emt 0:01:40]} 34. h5+ {[%emt 0:00:33]} Kf5 {[%emt 0:00:13][%cal Od8d2]} 35. Nf7 {[%emt 0:00:35]} Rf8 {[%emt 0:02:17]} 36. h6 {[%emt 0:00:50]} gxh6 {[%emt 0:00:13]} 37. Nxh6+ {[%emt 0:00:49]} Ke6 {[%emt 0:01:06]} 38. Ng4 {[%emt 0:00:44]} Nd2+ {[%emt 0:01:00]} 39. Nxd2 {[%emt 0:00:36]} Rxd2 {[%emt 0:00:06]} 40. Kc1 {[%emt 0:00:23]} (40. Re1 $142) 40... Re2 {[%emt 0:00:25]} 41. Rh6+ {[%emt 0:00:35]} Ke7 {[%emt 0:01:06]} 42. Rc6 {[%emt 0:00:36]} Rxf3 {[%emt 0:00:32] Weighted Error Value: White=0.51/Black=0.18 (very precise) .  Mistake:       	White=6     	Black=1      Inaccurate:     	White=1     	Black=4      OK:         	White=5     	Black=8      Best:        	White=1     	Black=5      Strong:       	White=1     	---        Brilliant:      	---       	Black=1} 0-1